bitfinex/quotes_BTCUSD_20250910
["timestamp","ask_amount","ask_price","bid_price","bid_amount"]
[1757540905362,0.33775755,113740.0,113730.0,1.26094352]
[1757540909487,0.3466947,113740.0,113730.0,1.26094352]
[1757540911126,0.3466947,113740.0,113730.0,1.25882352]
[1757540913759,0.3714547,113740.0,113730.0,1.11210352]
[1757540913947,0.3414447,113740.0,113730.0,1.26095352]
[1757540914565,0.3435447,113740.0,113730.0,1.26095352]
[1757540914781,0.3466947,113740.0,113730.0,1.26095352]
[1757540915557,0.3414447,113740.0,113730.0,1.26095352]
[1757540916705,0.3466947,113740.0,113730.0,1.26095352]
[1757540917530,0.33775755,113740.0,113730.0,1.26095352]
[1757540917756,0.33250755,113740.0,113730.0,1.26095352]
[1757540917972,0.33250755,113740.0,113730.0,1.26414352]
[1757540918408,0.33250755,113740.0,113730.0,1.26095352]
[1757540920185,0.17631033,113740.0,113730.0,1.45568861]
[1757540920466,0.0004707,113740.0,113730.0,1.53081519]
[1757540921067,0.0004707,113740.0,113730.0,1.55719324]
[1757540921305,0.0004707,113740.0,113730.0,1.82559324]
[1757540926993,0.0004707,113740.0,113730.0,1.83441356]
[1757540930116,0.0004707,113740.0,113730.0,1.56601356]
[1757540932753,0.0004707,113740.0,113730.0,1.95601356]
[1757540939048,0.0004707,113740.0,113730.0,2.66371356]
[1757540942251,0.0004707,113740.0,113730.0,2.65871356]
[1757540942392,0.0004707,113740.0,113730.0,2.65671356]
[1757540942607,0.0004707,113740.0,113730.0,2.66371356]
[1757540943168,0.0004707,113740.0,113730.0,2.65971356]
[1757540943518,0.0004707,113740.0,113730.0,2.66371356]
[1757540944965,0.18459915,113760.0,113750.0,0.80095075]
[1757540945207,0.18459915,113760.0,113750.0,1.05005097]
[1757540945397,0.18459915,113760.0,113750.0,1.05216097]
[1757540945565,0.17580722,113770.0,113760.0,0.05]
[1757540945774,0.17580722,113770.0,113760.0,1.02376042]
[1757540945971,0.17580722,113770.0,113760.0,1.04060282]
[1757540947126,0.17580722,113770.0,113760.0,1.04160282]
[1757540947565,0.17580722,113770.0,113760.0,1.0667294]
[1757540947677,0.17580722,113770.0,113760.0,1.09310097]
[1757540947876,0.17680722,113770.0,113760.0,1.26890969]
[1757540948537,0.17680722,113770.0,113760.0,1.09310097]
[1757540948757,0.17680722,113770.0,113760.0,1.26890969]
[1757540950370,0.17680722,113770.0,113760.0,1.09310097]
[1757540951334,0.17680722,113770.0,113760.0,1.26890969]
[1757540951692,0.17680722,113770.0,113760.0,1.24253812]
[1757540952127,0.17680722,113770.0,113760.0,1.0667294]
[1757540960917,0.17680722,113770.0,113760.0,1.24253812]
[1757540962024,0.17680722,113770.0,113760.0,1.0667294]
[1757540962251,0.17680722,113770.0,113760.0,1.24253812]
[1757540966222,0.17680722,113770.0,113760.0,1.0667294]
[1757540967327,0.17680722,113770.0,113760.0,1.24253812]
[1757540967750,0.17680722,113770.0,113760.0,1.24050269]
[1757540968128,0.17680722,113770.0,113760.0,1.06469397]
[1757540968925,0.17680722,113770.0,113760.0,1.24050269]
[1757540975162,0.17680722,113770.0,113760.0,1.06469397]
[1757540977117,0.37137405,113770.0,113760.0,0.82614282]
[1757540977326,0.37343405,113770.0,113760.0,0.97254282]
[1757540977622,0.37655405,113770.0,113760.0,0.97254282]
[1757540978197,0.37655405,113770.0,113760.0,0.82614282]
[1757540978408,0.37655405,113770.0,113760.0,0.97254282]
[1757540979412,0.37655405,113770.0,113760.0,0.97043282]
[1757540980828,0.37655405,113770.0,113760.0,0.97239282]
[1757540981306,0.37655405,113770.0,113760.0,0.97043282]
[1757540985949,0.37655405,113770.0,113760.0,0.97239282]
[1757540986583,0.37655405,113770.0,113760.0,0.82403282]
[1757540986805,0.39954405,113770.0,113760.0,0.97039282]
[1757540987403,0.39954405,113770.0,113760.0,0.42403282]
[1757540987610,0.59411088,113770.0,113760.0,0.57039282]
[1757540987810,0.62048756,113770.0,113760.0,0.97039282]
[1757540991056,0.42592073,113770.0,113760.0,0.97039282]
[1757540992040,0.40293073,113770.0,113760.0,0.97039282]
[1757540992405,0.40293073,113770.0,113760.0,0.70246352]
[1757540995316,0.42645073,113770.0,113760.0,0.70246352]
[1757540995542,0.40293073,113770.0,113760.0,0.30246352]
[1757540996166,0.40293073,113770.0,113760.0,0.70246352]
[1757540999167,0.40293073,113770.0,113760.0,0.30246352]
[1757540999630,0.40293073,113770.0,113760.0,0.70246352]
[1757541001455,0.42645073,113770.0,113760.0,0.70246352]
[1757541002538,0.42645073,113770.0,113760.0,0.30246352]
[1757541002932,0.42645073,113770.0,113760.0,0.15610352]
[1757541003149,0.42645073,113770.0,113760.0,0.70466112]
[1757541003353,0.42645073,113770.0,113760.0,0.70246352]
[1757541005711,0.62101756,113770.0,113760.0,0.70246352]
[1757541006129,0.42645073,113770.0,113760.0,0.30246352]
[1757541006587,0.42645073,113770.0,113760.0,0.70246352]
[1757541008107,0.43538093,113770.0,113760.0,0.70246352]
[1757541009662,0.43538093,113770.0,113760.0,0.30246352]
[1757541010132,0.43538093,113770.0,113760.0,0.70246352]
[1757541010351,0.40668093,113770.0,113760.0,0.70455352]
[1757541010754,0.41179093,113770.0,113760.0,0.70246352]
[1757541012987,0.41179093,113770.0,113760.0,0.30246352]
[1757541013621,0.41179093,113770.0,113760.0,0.70246352]
[1757541014487,0.34698927,113770.0,113760.0,0.70246352]
[1757541016626,0.34698927,113770.0,113760.0,0.30246352]
[1757541016863,0.33805907,113770.0,113760.0,0.30246352]
[1757541017083,0.33805907,113770.0,113760.0,0.70246352]
[1757541020015,0.33805907,113770.0,113760.0,0.30246352]
[1757541020416,0.33805907,113770.0,113760.0,0.30455352]
[1757541020611,0.33805907,113770.0,113760.0,0.70455352]
[1757541020612,0.33294907,113770.0,113760.0,0.70455352]
[1757541021038,0.33499907,113770.0,113760.0,0.70455352]
[1757541021245,0.33805907,113770.0,113760.0,0.70455352]
[1757541021654,0.2082939,113770.0,113760.0,0.70455352]
[1757541021880,0.33805907,113770.0,113760.0,0.70455352]
[1757541023473,0.33805907,113770.0,113760.0,0.30455352]
[1757541024127,0.33805907,113770.0,113760.0,0.70455352]
[1757541025913,0.33805907,113770.0,113760.0,0.70246352]
[1757541026566,0.33805907,113770.0,113760.0,0.70449352]
[1757541027055,0.33805907,113770.0,113760.0,0.30449352]
[1757541027618,0.33805907,113770.0,113760.0,0.70449352]
[1757541028524,0.33805907,113770.0,113760.0,0.70246352]
[1757541030599,0.33805907,113770.0,113760.0,0.30246352]
[1757541031152,0.33805907,113770.0,113760.0,0.70246352]
[1757541031350,0.33805907,113770.0,113760.0,0.70449352]
[1757541032590,0.33805907,113770.0,113760.0,0.70246352]
[1757541033996,0.33805907,113770.0,113760.0,0.30246352]
[1757541034253,0.2082939,113770.0,113760.0,0.30449352]
[1757541034401,0.33805907,113770.0,113760.0,0.30449352]
[1757541034603,0.33805907,113770.0,113760.0,0.70449352]
[1757541037564,0.2082939,113770.0,113760.0,0.30449352]
[1757541037923,0.33805907,113770.0,113760.0,0.30449352]
[1757541038153,0.33805907,113770.0,113760.0,0.70449352]
[1757541041248,0.33805907,113770.0,113760.0,0.30449352]
[1757541041663,0.33805907,113770.0,113760.0,0.70449352]
[1757541044614,0.33805907,113770.0,113760.0,0.30449352]
[1757541045235,0.33805907,113770.0,113760.0,0.70449352]
[1757541048162,0.33294907,113770.0,113760.0,0.30449352]
[1757541048577,0.33294907,113770.0,113760.0,0.70449352]
[1757541048845,0.33510907,113770.0,113760.0,0.70449352]
[1757541049016,0.33823907,113770.0,113760.0,0.70449352]
[1757541051569,0.33823907,113770.0,113760.0,0.30449352]
[1757541051989,0.33294907,113770.0,113760.0,0.30449352]
[1757541052132,0.33294907,113770.0,113760.0,0.70449352]
[1757541052343,0.33510907,113770.0,113760.0,0.70449352]
[1757541052539,0.33823907,113770.0,113760.0,0.70449352]
[1757541055050,0.33823907,113770.0,113760.0,0.30449352]
[1757541055619,0.33823907,113770.0,113760.0,0.70449352]
[1757541058524,0.33823907,113770.0,113760.0,0.30449352]
[1757541059165,0.33823907,113770.0,113760.0,0.70449352]
[1757541062153,0.2031839,113770.0,113760.0,0.30758352]
[1757541062554,0.2031839,113770.0,113760.0,0.70758352]
[1757541062944,0.17680722,113770.0,113760.0,0.90758352]
[1757541063280,0.17680722,113770.0,113760.0,0.92327352]
[1757541063494,0.17680722,113770.0,113760.0,1.19120282]
[1757541068576,0.17680722,113770.0,113760.0,0.92327352]
[1757541068726,0.17680722,113770.0,113760.0,1.17209339]
[1757541069154,0.17680722,113770.0,113760.0,0.99628467]
[1757541080603,0.37136234,113770.0,113760.0,0.97744467]
[1757541090226,0.17680722,113770.0,113760.0,0.97744467]
[1757541095912,0.17680722,113770.0,113760.0,0.98042467]
[1757541104644,0.17680722,113770.0,113760.0,0.99611467]
[1757541112963,0.17680722,113770.0,113760.0,0.98042467]
[1757541113144,0.17680722,113770.0,113760.0,0.99611467]
[1757541116645,0.17680722,113770.0,113760.0,0.98042467]
[1757541126059,0.17680722,113770.0,113760.0,0.97744467]
[1757541126060,0.37136234,113770.0,113760.0,0.97744467]
[1757541126715,0.17680722,113770.0,113760.0,0.98063467]
[1757541127122,0.17680722,113770.0,113760.0,0.99632467]
[1757541131662,0.17680722,113770.0,113760.0,0.98063467]
[1757541146122,0.17680722,113770.0,113760.0,0.98053268]
[1757541148604,0.17680722,113770.0,113760.0,0.97521268]
[1757541148837,0.18182722,113770.0,113760.0,0.97730268]
[1757541149464,0.17680722,113770.0,113760.0,0.97730268]
[1757541152146,0.17680722,113770.0,113760.0,0.83118268]
[1757541152323,0.17680722,113770.0,113760.0,0.97730268]
[1757541173495,0.17680722,113770.0,113760.0,0.98038268]
[1757541173932,0.17680722,113770.0,113760.0,0.97730268]
[1757541179236,0.17680722,113770.0,113760.0,1.24570268]
[1757541185383,0.17680722,113770.0,113760.0,1.24865268]
[1757541186918,0.17680722,113770.0,113760.0,1.24570268]
[1757541188842,0.17680722,113770.0,113760.0,1.24865268]
[1757541200840,0.17680722,113770.0,113760.0,1.09958268]
[1757541201062,0.17680722,113770.0,113760.0,1.24566268]
[1757541211130,0.17680722,113770.0,113760.0,1.24878268]
[1757541224714,0.20317833,113770.0,113760.0,1.24878268]
[1757541228899,0.20317833,113770.0,113760.0,1.2236561]
[1757541229126,0.20317833,113770.0,113760.0,1.25002721]
[1757541229550,0.20317833,113770.0,113760.0,1.10082721]
[1757541229667,0.39774803,113770.0,113760.0,1.24686721]
[1757541229896,0.39774803,113770.0,113760.0,1.2204961]
[1757541230098,0.39774803,113770.0,113760.0,1.2236161]
[1757541234673,0.20317833,113770.0,113760.0,1.2236161]
[1757541235606,0.20317833,113770.0,113760.0,1.2204961]
[1757541239278,0.20317833,113770.0,113760.0,1.2236961]
[1757541241526,0.20828833,113770.0,113760.0,1.0723661]
[1757541241900,0.42736803,113770.0,113760.0,0.6723661]
[1757541242077,0.42736803,113770.0,113760.0,0.77044153]
[1757541242421,0.42736803,113770.0,113760.0,1.17044153]
[1757541245409,0.23279833,113770.0,113760.0,1.17044153]
[1757541245624,0.42736803,113770.0,113760.0,1.17044153]
[1757541247529,0.42736803,113770.0,113760.0,1.17040153]
[1757541248115,0.62193773,113770.0,113760.0,1.02440153]
[1757541248323,0.62193773,113770.0,113760.0,0.15600153]
[1757541248526,0.62193773,113770.0,113760.0,0.30200153]
[1757541248953,0.17580872,113760.0,113750.0,0.75]
[1757541249191,0.59456812,113760.0,113750.0,0.70496352]
[1757541249614,0.62094646,113760.0,113750.0,0.30496352]
[1757541249857,0.62966691,113760.0,113750.0,0.30496352]
[1757541250287,0.62966691,113760.0,113750.0,0.45096352]
[1757541250524,0.62966691,113760.0,113750.0,0.45296352]
[1757541254110,0.62966691,113760.0,113750.0,0.45306352]
[1757541256749,0.24052751,113760.0,113750.0,0.45306352]
[1757541256972,0.62966691,113760.0,113750.0,0.45306352]
[1757541258385,0.50012983,113760.0,113750.0,0.45306352]
[1757541273004,0.02637834,113760.0,113750.0,0.55388264]
[1757541273219,0.17589536,113770.0,113760.0,0.27309115]
[1757541273424,0.17589536,113770.0,113760.0,0.3789072]
[1757541273631,0.17589536,113770.0,113760.0,0.3966272]
[1757541273835,0.17579536,113770.0,113760.0,0.3966272]
[1757541274064,0.17579536,113770.0,113760.0,0.42299748]
[1757541274961,0.17679536,113770.0,113760.0,0.82299748]
[1757541275755,0.17679536,113770.0,113760.0,0.82409748]
[1757541280507,0.17679536,113770.0,113760.0,0.97009748]
[1757541283905,0.17679536,113770.0,113760.0,0.95440748]
[1757541285085,0.17679536,113770.0,113760.0,0.9280372]
[1757541288942,0.17679536,113770.0,113760.0,1.1964372]
[1757541289631,0.17679536,113770.0,113760.0,1.4121272]
[1757541297786,0.17679536,113770.0,113760.0,1.3964372]
[1757541308615,0.17679536,113770.0,113760.0,1.4638772]
[1757541316151,0.17679536,113770.0,113760.0,1.4795672]
[1757541317034,0.17679536,113770.0,113760.0,1.4638772]
[1757541322483,0.001,113770.0,113760.0,1.4638772]
[1757541322946,0.17679326,113770.0,113760.0,1.4638772]
[1757541324446,0.001,113770.0,113760.0,1.4638772]
[1757541325312,0.17679326,113770.0,113760.0,1.4638772]
[1757541329835,0.001,113770.0,113760.0,1.4795672]
[1757541330013,0.17679326,113770.0,113760.0,1.4795672]
[1757541331418,0.001,113770.0,113760.0,1.4795672]
[1757541331654,0.17679326,113770.0,113760.0,1.4795672]
[1757541340951,0.001,113770.0,113760.0,1.4795672]
[1757541341593,0.17679326,113770.0,113760.0,1.4795672]
[1757541343350,0.001,113770.0,113760.0,1.4795672]
[1757541344150,0.17679326,113770.0,113760.0,1.4795672]
[1757541344734,0.17679326,113770.0,113760.0,1.4638772]
[1757541344868,0.17679326,113770.0,113760.0,1.49024683]
[1757541350164,0.17679326,113770.0,113760.0,1.48924683]
[1757541350368,0.17679326,113770.0,113760.0,1.49124683]
[1757541351403,0.17679326,113770.0,113760.0,1.48797683]
[1757541351572,0.17579326,113770.0,113760.0,1.48797683]
[1757541351962,0.17579326,113770.0,113760.0,1.49093683]
[1757541355491,0.37560073,113770.0,113760.0,1.26900568]
[1757541355703,0.39997073,113770.0,113760.0,1.01285568]
[1757541356355,0.39997073,113770.0,113760.0,1.41285568]
[1757541359996,0.20540326,113770.0,113760.0,1.41285568]
[1757541360194,0.39997073,113770.0,113760.0,1.41285568]
[1757541360862,0.37560073,113770.0,113760.0,1.41285568]
[1757541361766,0.37560073,113770.0,113760.0,1.41494568]
[1757541362330,0.37560073,113770.0,113760.0,1.41285568]
[1757541366156,0.18103326,113770.0,113760.0,1.41285568]
[1757541366388,0.37560073,113770.0,113760.0,1.41494568]
[1757541366835,0.37560073,113770.0,113760.0,1.41285568]
[1757541369250,0.18103326,113770.0,113760.0,1.41494568]
[1757541369478,0.37560073,113770.0,113760.0,1.41494568]
[1757541375622,0.37560073,113770.0,113760.0,1.38857605]
[1757541378270,0.00524,113770.0,113760.0,1.38857605]
[1757541378650,0.21113633,113780.0,113770.0,0.15]
[1757541378798,0.60551127,113780.0,113770.0,0.38340352]
[1757541379529,0.60551127,113780.0,113770.0,0.78350352]
[1757541379917,0.60551127,113780.0,113770.0,0.78355034]
[1757541380505,0.60651127,113780.0,113770.0,0.78355034]
[1757541381565,0.21737633,113780.0,113770.0,0.78355034]
[1757541381767,0.60651127,113780.0,113770.0,0.78355034]
[1757541382368,0.47683135,113780.0,113770.0,0.38355034]
[1757541382923,0.47683135,113780.0,113770.0,0.78355034]
[1757541383324,0.21737633,113780.0,113770.0,0.78355034]
[1757541383570,0.47683135,113780.0,113770.0,0.78355034]
[1757541383967,0.47683135,113780.0,113770.0,1.05195034]
[1757541385325,0.21737633,113780.0,113770.0,1.05195034]
[1757541385644,0.47683135,113780.0,113770.0,1.05195034]
[1757541387205,0.50017135,113780.0,113770.0,1.05195034]
[1757541391706,0.37044384,113780.0,113770.0,1.05195034]
[1757541394622,0.37044384,113780.0,113770.0,1.06711218]
[1757541397113,0.24071633,113780.0,113770.0,1.06711218]
[1757541397325,0.37044384,113780.0,113770.0,1.06711218]
[1757541399308,0.34186384,113780.0,113770.0,1.06921218]
[1757541399461,0.15729714,113780.0,113770.0,1.06921218]
[1757541399668,0.33307495,113780.0,113770.0,1.07230218]
[1757541400317,0.20334744,113780.0,113770.0,1.07230218]
[1757541403252,0.33307495,113780.0,113770.0,1.07230218]
[1757541404759,0.30670532,113780.0,113770.0,1.07230218]
[1757541407672,0.30670532,113780.0,113770.0,1.06921218]
[1757541408105,0.30670532,113780.0,113770.0,1.07230218]
[1757541408655,0.17697781,113780.0,113770.0,1.07230218]
[1757541408874,0.30670532,113780.0,113770.0,1.07230218]
[1757541409219,0.30670532,113780.0,113770.0,1.06921218]
[1757541409933,0.30670532,113780.0,113770.0,1.07230218]
[1757541410872,0.30670532,113780.0,113770.0,1.06921218]
[1757541411283,0.30670532,113780.0,113770.0,0.66921218]
[1757541411486,0.30670532,113780.0,113770.0,0.67230218]
[1757541413000,0.30670532,113780.0,113770.0,1.07230218]
[1757541413197,0.30670532,113780.0,113770.0,1.13974218]
[1757541413777,0.30670532,113780.0,113770.0,1.13665218]
[1757541414170,0.30670532,113780.0,113770.0,1.13982218]
[1757541415272,0.30670532,113780.0,113770.0,1.13665218]
[1757541416593,0.30670532,113780.0,113770.0,1.13982218]
[1757541418224,0.30670532,113780.0,113770.0,1.13665218]
[1757541419976,0.17697781,113780.0,113770.0,1.13665218]
[1757541420157,0.30670532,113780.0,113770.0,1.13665218]
[1757541421696,0.17697781,113780.0,113770.0,1.13665218]
[1757541422527,0.18206781,113780.0,113770.0,1.13665218]
[1757541422929,0.31179532,113780.0,113770.0,1.13455218]
[1757541423653,0.31179532,113780.0,113770.0,1.13659218]
[1757541423866,0.30873532,113780.0,113770.0,1.13659218]
[1757541424613,0.31179532,113780.0,113770.0,1.13659218]
[1757541425202,0.30670532,113780.0,113770.0,0.86819218]
[1757541426629,0.17697781,113780.0,113770.0,0.86819218]
[1757541426851,0.30670532,113780.0,113770.0,0.86819218]
[1757541428307,0.33307483,113780.0,113770.0,0.86819218]
[1757541433177,0.20334732,113780.0,113770.0,0.86819218]
[1757541434387,0.20334732,113780.0,113770.0,1.13659218]
[1757541438814,0.20843732,113780.0,113770.0,1.13659218]
[1757541439966,0.20334732,113780.0,113770.0,1.13659218]
[1757541443012,0.33816483,113780.0,113770.0,1.13455218]
[1757541444391,0.40300206,113780.0,113770.0,1.13455218]
[1757541447532,0.40300206,113780.0,113770.0,1.13657218]
[1757541450748,0.40300206,113780.0,113770.0,1.13455218]
[1757541451342,0.40300206,113780.0,113770.0,1.13657218]
[1757541451956,0.37663255,113780.0,113770.0,1.13657218]
[1757541454911,0.37663255,113780.0,113770.0,1.13455218]
[1757541455112,0.37663255,113780.0,113770.0,1.53455218]
[1757541455581,0.37663255,113780.0,113770.0,1.53657218]
[1757541456783,0.37357255,113780.0,113770.0,1.53657218]
[1757541457420,0.37655255,113780.0,113770.0,1.53657218]
[1757541460560,0.37655255,113780.0,113770.0,1.53455218]
[1757541461024,0.37655255,113780.0,113770.0,1.53657218]
[1757541461213,0.18198781,113780.0,113770.0,1.53657218]
[1757541461360,0.37655255,113780.0,113770.0,1.53657218]
[1757541462390,0.37357255,113780.0,113770.0,1.53657218]
[1757541462774,0.37655255,113780.0,113770.0,1.53657218]
[1757541465179,0.39994206,113780.0,113770.0,1.53657218]
[1757541466134,0.39791206,113780.0,113770.0,1.53657218]
[1757541468748,0.20334732,113780.0,113770.0,1.53657218]
[1757541468944,0.39791206,113780.0,113770.0,1.53657218]
[1757541469151,0.20334732,113780.0,113770.0,1.53657218]
[1757541469377,0.39791206,113780.0,113770.0,1.53657218]
[1757541469579,0.40004206,113780.0,113770.0,1.26809218]
[1757541469760,0.40302206,113780.0,113770.0,1.26809218]
[1757541470522,0.20845732,113780.0,113770.0,1.26809218]
[1757541470667,0.40302206,113780.0,113770.0,1.26809218]
[1757541471917,0.40004206,113780.0,113770.0,1.26809218]
[1757541472138,0.40302206,113780.0,113770.0,1.26809218]
[1757541473370,0.42801206,113780.0,113770.0,0.72027218]
[1757541473540,0.6225768,113780.0,113770.0,0.86607218]
[1757541473970,0.23344732,113780.0,113770.0,0.86607218]
[1757541474170,0.42801206,113780.0,113770.0,0.86607218]
[1757541474981,0.6225768,113780.0,113770.0,0.86607218]
[1757541477432,0.6225768,113780.0,113770.0,1.26607218]
[1757541478881,0.6225768,113780.0,113770.0,1.53447218]
[1757541481222,0.42801206,113780.0,113770.0,1.53447218]
[1757541483755,0.6225768,113780.0,113770.0,1.53447218]
[1757541484924,0.42801206,113780.0,113770.0,1.53447218]
[1757541486650,0.40302206,113780.0,113770.0,1.53646218]
[1757541486856,0.40302206,113780.0,113770.0,1.53447218]
[1757541487266,0.23264732,113780.0,113770.0,1.53646218]
[1757541487472,0.23264732,113780.0,113770.0,1.53447218]
[1757541487681,0.42721206,113780.0,113770.0,1.53447218]
[1757541488354,0.40302206,113780.0,113770.0,1.53447218]
[1757541489308,0.42721206,113780.0,113770.0,1.53447218]
[1757541491732,0.40302206,113780.0,113770.0,1.53447218]
[1757541492785,0.40302206,113780.0,113770.0,1.13447218]
[1757541493894,0.40302206,113780.0,113770.0,1.13646218]
[1757541494353,0.40302206,113780.0,113770.0,1.13447218]
[1757541495940,0.20845732,113780.0,113770.0,1.13447218]
[1757541496162,0.40302206,113780.0,113770.0,1.13447218]
[1757541505830,0.40302206,113780.0,113770.0,1.13662218]
[1757541506058,0.20845732,113780.0,113770.0,1.13662218]
[1757541506240,0.40302206,113780.0,113770.0,1.13662218]
[1757541506455,0.33816917,113780.0,113770.0,1.13662218]
[1757541507455,0.33816917,113780.0,113770.0,1.13447218]
[1757541507862,0.20845732,113780.0,113770.0,1.13447218]
[1757541509490,0.20334732,113780.0,113770.0,1.13662218]
[1757541509720,0.20844732,113780.0,113770.0,1.13662218]
[1757541509923,0.20844732,113780.0,113770.0,1.13447218]
[1757541510154,0.33815917,113780.0,113770.0,1.13447218]
[1757541516256,0.33815917,113780.0,113770.0,0.93447218]
[1757541516699,0.33815917,113780.0,113770.0,0.91931034]
[1757541518230,0.36191917,113780.0,113770.0,0.91931034]
[1757541519554,0.36191917,113780.0,113770.0,1.31931034]
[1757541519940,0.36191917,113780.0,113770.0,0.91931034]
[1757541520356,0.36191917,113780.0,113770.0,1.31931034]
[1757541526924,0.33815917,113780.0,113770.0,1.31931034]
[1757541527445,0.36191917,113780.0,113770.0,1.31931034]
[1757541529146,0.33815917,113780.0,113770.0,1.31931034]
[1757541529486,0.33815917,113780.0,113770.0,1.32146034]
[1757541529710,0.33815917,113780.0,113770.0,1.31931034]
[1757541530534,0.36191917,113780.0,113770.0,1.31931034]
[1757541532053,0.33815917,113780.0,113770.0,1.31931034]
[1757541532730,0.36191917,113780.0,113770.0,1.31931034]
[1757541534225,0.33815917,113780.0,113770.0,1.32138034]
[1757541534791,0.33815917,113780.0,113770.0,1.31931034]
[1757541535199,0.36092917,113780.0,113770.0,1.31931034]
[1757541536971,0.33815917,113780.0,113770.0,1.31931034]
[1757541537628,0.20844732,113780.0,113770.0,0.92138034]
[1757541537831,0.0012,113780.0,113770.0,0.92440034]
[1757541538036,0.17697781,113780.0,113770.0,0.92440034]
[1757541538240,0.17697781,113780.0,113770.0,1.34009034]
[1757541538436,0.17697781,113780.0,113770.0,1.38805491]
[1757541538642,0.17697781,113780.0,113770.0,1.41442317]
[1757541549588,0.17697781,113780.0,113770.0,1.39873317]
[1757541552574,0.17697781,113780.0,113770.0,1.60953317]
[1757541553395,0.17697781,113780.0,113770.0,1.82522317]
[1757541555305,0.0012,113780.0,113770.0,1.82522317]
[1757541561108,0.0002,113780.0,113770.0,1.82822317]
[1757541561318,0.0002,113780.0,113770.0,1.83122317]
[1757541565167,0.0002,113780.0,113770.0,2.17122317]
[1757541570375,0.0002,113780.0,113770.0,1.90282317]
[1757541572378,0.0002,113780.0,113770.0,6.92794975]
[1757541575641,0.0002,113780.0,113770.0,6.92858975]
[1757541579068,0.0002,113780.0,113770.0,1.78214975]
[1757541579273,0.19470834,113780.0,113770.0,1.73831317]
[1757541579682,0.19470834,113780.0,113770.0,1.88487317]
[1757541580009,0.19470834,113780.0,113770.0,1.88784317]
[1757541580535,0.0002,113780.0,113770.0,1.88784317]
[1757541580959,0.19470834,113780.0,113770.0,1.88784317]
[1757541584142,0.0002,113780.0,113770.0,1.88784317]
[1757541584336,0.19470834,113780.0,113770.0,1.88784317]
[1757541585564,0.19470834,113780.0,113770.0,1.74128317]
[1757541585797,0.19470834,113780.0,113770.0,1.88780317]
[1757541588693,0.0002,113780.0,113770.0,1.88780317]
[1757541598109,0.19470834,113780.0,113770.0,1.74128317]
[1757541598334,0.19470834,113780.0,113770.0,1.88479317]
[1757541598335,0.0002,113780.0,113770.0,1.88479317]
[1757541599195,0.0002,113780.0,113770.0,1.88800317]
[1757541603699,0.0002,113780.0,113770.0,1.74152317]
[1757541603901,0.0002,113780.0,113770.0,1.88820317]
[1757541606737,0.0002,113780.0,113770.0,1.90389317]
[1757541621925,0.0002,113780.0,113770.0,2.06965436]
[1757541622288,0.0002,113780.0,113770.0,6.92901975]
[1757541630834,0.0002,113780.0,113770.0,1.92901975]
[1757541631827,0.17597781,113780.0,113770.0,1.76343975]
[1757541632051,0.17805781,113780.0,113770.0,1.88519317]
[1757541632262,0.17597781,113780.0,113770.0,1.88519317]
[1757541637493,0.17597781,113780.0,113770.0,1.88833317]
[1757541644921,0.17597781,113780.0,113770.0,1.74145317]
[1757541645147,0.17597781,113780.0,113770.0,1.88841317]
[1757541650332,0.0002,113780.0,113770.0,1.88841317]
[1757541650747,0.0002,113780.0,113770.0,1.90410317]
[1757541652733,0.0002,113780.0,113770.0,1.92922975]
[1757541660391,0.0002,113780.0,113770.0,1.78226975]
[1757541660771,0.0002,113780.0,113770.0,1.92938975]
[1757541665948,0.17596321,113790.0,113780.0,0.31616457]
[1757541666167,0.17596321,113790.0,113780.0,0.57087128]
[1757541666579,0.17596321,113790.0,113780.0,0.97087128]
[1757541666795,0.17596321,113790.0,113780.0,0.99723398]
[1757541667089,0.17596236,113790.0,113780.0,0.99723398]
[1757541667308,0.17596236,113790.0,113780.0,0.99933398]
[1757541667522,0.17596236,113790.0,113780.0,1.00033398]
[1757541668149,0.0002,113790.0,113780.0,1.00033398]
[1757541668613,0.0002,113790.0,113780.0,1.99622837]
[1757541668847,0.0002,113790.0,113780.0,7.00495025]
[1757541669774,0.0002,113790.0,113780.0,7.00395025]
[1757541669999,0.0002,113790.0,113780.0,7.00195025]
[1757541670227,0.0177153,113800.0,113780.0,7.01095025]
[1757541670461,0.0002,113810.0,113800.0,0.04796457]
[1757541670691,0.0002,113810.0,113800.0,1.30933595]
[1757541670931,0.0002,113810.0,113800.0,6.31582689]
[1757541671159,0.0002,113810.0,113800.0,6.7608812]
[1757541671384,0.0002,113810.0,113800.0,6.75215932]
[1757541671609,0.0002,113810.0,113800.0,6.66304064]
[1757541672315,0.2024233,113850.0,113800.0,6.66304064]
[1757541672316,0.0002,113860.0,113830.0,0.17569277]
[1757541672542,0.0002,113860.0,113850.0,1.22841441]
[1757541672775,0.0002,113860.0,113850.0,6.79047399]
[1757541673042,0.0002,113860.0,113850.0,6.63350425]
[1757541673273,0.0002,113860.0,113850.0,6.63721722]
[1757541673589,0.0002,113860.0,113850.0,6.64407196]
[1757541673815,0.00067099,113860.0,113850.0,6.49695196]
[1757541674047,0.00067099,113860.0,113850.0,6.49309722]
[1757541674286,0.00401297,113890.0,113850.0,6.09609722]
[1757541674515,0.0003,113890.0,113880.0,0.71051227]
[1757541674745,0.0003,113890.0,113880.0,0.85767227]
[1757541674969,0.0003,113890.0,113880.0,6.11264227]
[1757541675188,0.0003,113890.0,113880.0,6.27850227]
[1757541675416,0.0002,113890.0,113880.0,6.30483507]
[1757541676095,0.0002,113890.0,113880.0,6.30491507]
[1757541676320,0.0002,113890.0,113880.0,6.48053853]
[1757541676542,0.0002,113890.0,113880.0,6.48049853]
[1757541676775,0.0002,113890.0,113880.0,6.72329853]
[1757541677010,0.0002,113890.0,113880.0,6.87049853]
[1757541677480,0.0002,113890.0,113880.0,6.72329853]
[1757541677705,0.0002,113890.0,113880.0,6.87049853]
[1757541677924,0.0002,113890.0,113880.0,6.87549853]
[1757541678633,0.0002,113890.0,113880.0,6.94277593]
[1757541678966,0.0002,113890.0,113880.0,6.79557593]
[1757541679397,0.0002,113890.0,113880.0,6.40368049]
[1757541679602,0.0002,113890.0,113880.0,6.35378049]
[1757541679823,0.0002,113890.0,113880.0,6.19809049]
[1757541680041,0.0002,113890.0,113880.0,6.34589049]
[1757541680250,0.0002,113890.0,113880.0,6.19809049]
[1757541680462,0.0002,113890.0,113880.0,6.68589049]
[1757541680661,0.0002,113890.0,113880.0,6.71101707]
[1757541680886,0.0002,113890.0,113880.0,6.72940395]
[1757541681160,0.0002,113890.0,113880.0,6.90233053]
[1757541681564,0.0002,113890.0,113880.0,6.90223053]
[1757541681770,0.0002,113890.0,113880.0,6.80443053]
[1757541681984,0.0002,113890.0,113880.0,6.95595053]
[1757541682828,0.0002,113890.0,113880.0,6.55595053]
[1757541683257,0.0002,113890.0,113880.0,6.95595053]
[1757541684092,0.0002,113890.0,113880.0,6.95591053]
[1757541684312,0.0002,113890.0,113880.0,6.75591053]
[1757541684515,0.0002,113890.0,113880.0,6.60443053]
[1757541684727,0.0002,113890.0,113880.0,6.42880707]
[1757541684943,0.0002,113890.0,113880.0,6.75591053]
[1757541685578,0.0002,113890.0,113880.0,6.75601053]